[Event "Rosh Hashanah Rapid 2022"]
[Site "Ramat Gan"]
[Date "2022.09.25"]
[Round "1.6"]
[White "Tashkinova, Sofiia"]
[Black "Levin, Guy"]
[Result "0-1"]
[ECO "B22"]
[WhiteElo "1938"]
[BlackElo "2382"]
[Annotator "TA"]
[PlyCount "98"]
[EventDate "2022.09.25"]
[EventType "rapid"]
[EventCountry "ISR"]
[SourceTitle "playchess.com"]
[Source "ChessBase"]
[SourceQuality "1"]
[TimeControl "900+5"]

{[%evp 9,98,-54,-51,-49,-46,-49,-52,-62,-45,-56,-15,-7,-20,-62,-35,-118,-128,-125,-131,-126,-114,-118,-83,-88,-35,-39,-36,-65,-70,-140,-6,-36,-29,-37,36,0,0,0,0,0,56,61,105,99,99,-17,0,-145,-154,-149,-151,-147,-151,-141,-114,-228,-211,-215,-222,-307,-307,-293,-290,-307,-291,-394,-334,-457,-454,-489,-484,-679,-657,-708,-698,-1496,-1479,-1370,-1185,-29982,-29983,-29983,-29984,-29984,-29985,-29985,-29986,-29988,-29989,-29991,-29992]} 1. e4 {[%emt 0:00:01]} c5 {[%emt 0:00:01]} 2. Nf3 {[%emt 0:00:04]} Nc6 {[%emt 0:00:05]} 3. c3 {[%emt 0:00:31]} Nf6 {[%emt 0:00:02]} 4. Qc2 {[%emt 0:00:35]} e5 {[%emt 0:01:14]} 5. Be2 {[%emt 0:00:18]} d5 {[%emt 0:00:25]} 6. d3 {[%emt 0:00:57] B22: Sicilian: 2 c3.} Be7 {[%emt 0:00:17]} 7. O-O {[%emt 0:00:14]} O-O {[%emt 0:00:02]} 8. Bg5 {[%emt 0:00:28] Black is slightly better.} Be6 {[%emt 0:00:06]} 9. Nbd2 {[%emt 0:00:13] [#]} Nd7 $146 {[%emt 0:00:29]} ({Predecessor:} 9... h6 10. Bxf6 Bxf6 11. a3 Rc8 12. Rab1 b5 13. Rfc1 Qb6 14. Qd1 d4 15. c4 b4 {1-0 (33) Pakleza,Z (2499)-Martin Hernandez,R (2184) Santa Cruz de La Palma 2019}) 10. Bxe7 {[%emt 0:01:00]} Qxe7 {[%emt 0:00:02]} 11. Nb3 {[%emt 0:00:29]} f5 {[%emt 0:00:07]} 12. Nfd2 {[%emt 0:00:37] Prevents c4.} (12. exd5 $15 Bxd5 13. Nfd2) 12... c4 $1 $17 {[%emt 0:00:22]} 13. dxc4 {[%emt 0:00:29]} dxe4 {[%emt 0:00:03]} 14. Rfe1 {[%emt 0:01:14]} Rf6 {[%emt 0:00:15] Black is more active.} 15. Nf1 {[%emt 0:01:03]} Qf7 {[%emt 0:01:52]} 16. Rad1 {[%emt 0:00:39]} Nb6 {[%emt 0:00:26]} (16... Rf8 $17) 17. Nc5 $15 {[%emt 0:01:30]} Bxc4 {[%emt 0:00:47]} 18. Bxc4 {[%emt 0:00:25]} Qxc4 {[%emt 0:00:04]} 19. Nd7 {[%emt 0:00:36]} (19. Qb3 $15) 19... Rf7 {[%emt 0:00:32]} ({Don't take} 19... Qxa2 20. Nxf6+ (20. Ra1 Qe6 $16) 20... gxf6 21. Rd6 $16) (19... Nxd7 $17 20. Rxd7 Nd4 $1) 20. Nxb6 {[%emt 0:00:10]} axb6 {[%emt 0:00:02]} 21. a3 {[%emt 0:00:06] [#]} Qc5 {[%emt 0:01:26]} ({Black should try} 21... Nd4 $1 $15 22. Qd2 Ne6) 22. Qb3 {[%emt 0:00:26][%mdl 1024] White has compensation.} Na5 {[%emt 0:02:00]} 23. Qe6 {[%emt 0:00:21] Threatens to win with b4.} Qc6 {[%emt 0:02:17]} 24. Rd6 {[%emt 0:00:34]} Qe8 {[%emt 0:00:01]} (24... Qc8 $1 $11) 25. Qd5 $14 {[%emt 0:00:48]} Nc6 {[%emt 0:00:13]} 26. Rd1 {[%emt 0:00:22]} g6 {[%emt 0:00:28]} 27. Rf6 {[%emt 0:00:59]} (27. Ne3 $16) 27... Rd8 $11 {[%emt 0:00:20]} 28. Qxf7+ {[%emt 0:00:26]} (28. Rd6 $1 $11 Rxd6 29. Qxd6) 28... Qxf7 $17 {[%emt 0:00:02]} 29. Rxd8+ {[%emt 0:00:03]} Nxd8 {[%emt 0:00:02]} 30. Rxf7 {[%emt 0:00:02]} Kxf7 $11 {[%emt 0:00:02][%mdl 4096] Endgame KN-KN} 31. Ne3 {[%emt 0:00:02]} Ke6 {[%emt 0:00:09]} 32. Kf1 {[%emt 0:00:18]} (32. a4 $17 {was called for.}) 32... b5 $19 {[%emt 0:00:01][%cal Bb6b5,Bb5c4][%mdl 32]} 33. Ke2 {[%emt 0:00:09]} Nf7 {[%emt 0:00:05]} 34. c4 {[%emt 0:00:11]} f4 {[%emt 0:00:03]} 35. Nd5 {[%emt 0:00:20]} bxc4 {[%emt 0:00:02]} 36. Nc7+ {[%emt 0:00:07]} Kd6 {[%emt 0:00:03]} 37. Nb5+ {[%emt 0:00:04]} Kc5 {[%emt 0:00:02]} 38. Nc3 {[%emt 0:00:01]} Nd6 {[%emt 0:00:01]} 39. g3 {[%emt 0:00:12]} g5 {[%emt 0:00:03]} 40. h4 {[%emt 0:00:07]} (40. Kd1 $142 h5 41. Ke1) 40... h6 {[%emt 0:00:06][%cal Bh7h6,Bh6g5,Bg5g4,Bg4g3,Bg3g2][%mdl 32]} 41. hxg5 {[%emt 0:00:02]} hxg5 {[%emt 0:00:00]} 42. gxf4 {[%emt 0:00:10]} exf4 {[%emt 0:00:02][%cal Be5f4,Bf4f3][%mdl 32] ...g4 is the strong threat.} 43. Na4+ {[%emt 0:00:04]} Kd4 {[%emt 0:00:02]} 44. Nb6 {[%emt 0:00:02]} g4 {[%emt 0:00:14] Black mates.} 45. Nd7 {[%emt 0:00:08]} f3+ {[%emt 0:00:11]} 46. Ke1 {[%emt 0:00:03]} e3 {[%emt 0:00:03]} 47. fxe3+ {[%emt 0:00:04]} Kxe3 {[%emt 0:00:01]} 48. Ne5 {[%emt 0:00:04]} g3 {[%emt 0:00:05]} 49. Kf1 {[%emt 0:00:02]} g2+ {[%emt 0:00:09] Weighted Error Value: White=0.48/Black=0.21 (precise)} 0-1

[Event "Rosh Hashanah Rapid 2022"]
[Site "Ramat Gan"]
[Date "2022.09.25"]
[Round "1.7"]
[White "Aizenberg, Benny"]
[Black "Azikri, Gur"]
[Result "1-0"]
[ECO "B09"]
[WhiteElo "2412"]
[BlackElo "1937"]
[Annotator "TA"]
[PlyCount "59"]
[EventDate "2022.09.25"]
[EventType "rapid"]
[EventCountry "ISR"]
[SourceTitle "playchess.com"]
[Source "ChessBase"]
[SourceQuality "1"]
[TimeControl "900+5"]

{[%evp 11,59,15,51,37,42,43,60,36,66,54,52,24,30,25,53,50,92,87,116,124,111,104,131,60,118,12,197,210,566,551,543,418,839,839,779,820,800,822,790,770,903,609,627,621,599,528,496,504,702,614]} 1. e4 {[%emt 0:00:01]} d6 {[%emt 0:00:01]} 2. d4 {[%emt 0:00:02]} Nf6 {[%emt 0:00:02]} 3. Nc3 {[%emt 0:00:01]} g6 {[%emt 0:00:14]} 4. f4 {[%emt 0:00:01][%cal Bf2f4,Bf4e5][%mdl 32]} Bg7 {[%emt 0:00:06]} 5. Nf3 {[%emt 0:00:02]} O-O {[%emt 0:00:06]} 6. Bd3 {[%emt 0:00:01]} a6 {[%emt 0:00:56]} 7. e5 {[%emt 0:00:07] B09: Pirc Defence: Austrian Attack.} dxe5 {[%emt 0:00:25]} 8. fxe5 {[%emt 0:00:02] [#]} Nh5 $146 {[%emt 0:00:18][%cal Oc7c5]} ({Predecessor:} 8... Nd5 9. Nxd5 Qxd5 10. c4 Qd8 11. O-O Bg4 12. Be4 Nc6 13. Be3 f6 14. Qb3 Bxf3 15. Bxf3 Nxd4 16. Qxb7 Nxf3+ 17. Qxf3 fxe5 {½-½ (57) Vucinic,G (2291)-Tosic,M (2414) Belgrade 2016}) 9. Be3 {[%emt 0:00:35] White is slightly better.} Nc6 {[%emt 0:00:34]} 10. Qd2 {[%emt 0:00:11]} Bg4 {[%emt 0:00:19]} 11. Ne2 {[%emt 0:00:03]} f6 {[%emt 0:00:48]} 12. exf6 {[%emt 0:00:27]} Bxf6 {[%emt 0:00:11]} 13. O-O-O {[%emt 0:00:07]} Kh8 {[%emt 0:01:31]} 14. Be4 {[%emt 0:00:19]} Qd6 {[%emt 0:01:18]} 15. h3 {[%emt 0:00:23]} Bxf3 {[%emt 0:00:44]} 16. Bxf3 {[%emt 0:00:02]} Ng7 {[%emt 0:00:09]} 17. h4 {[%emt 0:14:06]} (17. g4 $16) 17... Nf5 {[%emt 0:00:08]} (17... e5 $1 $14) 18. Bf4 {[%emt 0:00:00] This bishop pair is nice.} ({White should play} 18. h5 $16 {hxg6 is the strong threat.} Nxe3 19. Qxe3) 18... Qd7 $2 {[%emt 0:00:26] Loses the game.} (18... e5 $11 19. dxe5 Nxe5) 19. h5 $18 {[%emt 0:00:00] [#] Hoping for hxg6.} Kg7 {[%emt 0:00:43]} (19... g5 {is more resistant.}) 20. hxg6 {[%emt 0:00:00]} hxg6 {[%emt 0:00:03]} 21. Bh6+ {[%emt 0:00:00]} Nxh6 {[%emt 0:00:29]} (21... Kf7 $142 22. Bxf8 Rxf8) 22. Qxh6+ {[%emt 0:00:00] White is clearly winning.} Kf7 {[%emt 0:00:01]} 23. Qh7+ {[%emt 0:00:00]} Ke8 {[%emt 0:00:55]} 24. Qxg6+ {[%emt 0:00:00]} Kd8 {[%emt 0:00:01]} 25. Nf4 {[%emt 0:00:00]} Qd6 {[%emt 0:00:37]} 26. Qf5 {[%emt 0:00:00]} Qd7 {[%emt 0:01:13]} 27. Ne6+ {[%emt 0:00:00]} Kc8 {[%emt 0:00:29]} 28. Qe4 {[%emt 0:00:00]} Rg8 {[%emt 0:00:41]} 29. Rd3 {[%emt 0:00:00]} Kb8 {[%emt 0:00:32]} 30. Rb3 {[%emt 0:00:00] Weighted Error Value: White=0.52/Black=0.61} 1-0

[Event "Rosh Hashanah Rapid 2022"]
[Site "Ramat Gan"]
[Date "2022.09.25"]
[Round "1.8"]
[White "Orian, Noga"]
[Black "Veinberg, Nimrod"]
[Result "0-1"]
[ECO "E11"]
[WhiteElo "1908"]
[BlackElo "2400"]
[Annotator "TA"]
[PlyCount "88"]
[EventDate "2022.09.25"]
[EventType "rapid"]
[EventCountry "ISR"]
[SourceTitle "playchess.com"]
[Source "ChessBase"]
[SourceQuality "1"]
[TimeControl "900+5"]

{[%evp 15,88,8,2,-12,4,-18,4,-15,-12,0,0,-7,0,-14,-15,-20,-25,-22,-22,-10,-6,-26,-25,-66,-34,-58,-56,-55,-24,-28,-26,-47,-32,-43,-43,-47,-50,-38,-27,-31,0,-35,-41,-39,-40,-41,-44,-78,-77,-89,-81,-75,-77,-178,-67,-69,-66,-72,-70,-75,-78,-91,-48,-72,-32,-79,-65,-114,-72,-1101,-1080,-1062,-1054,-969,-958]} 1. d4 {[%emt 0:00:03]} Nf6 {[%emt 0:00:01]} 2. c4 {[%emt 0:00:01]} e6 {[%emt 0:00:03]} 3. Nf3 {[%emt 0:00:02]} d5 {[%emt 0:00:05]} 4. g3 {[%emt 0:00:02]} Bb4+ {[%emt 0:00:24]} 5. Bd2 {[%emt 0:00:02]} Be7 {[%emt 0:00:03]} 6. Bg2 {[%emt 0:00:01]} O-O {[%emt 0:00:02]} 7. O-O {[%emt 0:00:03]} c6 {[%emt 0:00:03]} 8. Bc3 {[%emt 0:00:01]} Ne4 {[%emt 0:00:26]} 9. Nfd2 {[%emt 0:00:53] E11: Bogo-Indian.} Nxc3 {[%emt 0:01:03]} 10. Nxc3 {[%emt 0:00:02]} Nd7 {[%emt 0:00:01] [#]} 11. cxd5 $146 {[%emt 0:01:00] The position is equal.} ({Predecessor:} 11. e4 e5 12. cxd5 exd4 13. Ne2 cxd5 14. exd5 Nb6 15. Qb3 Bf6 16. Ne4 Re8 17. Rfe1 Bf5 18. Nf4 Bxe4 19. Bxe4 Qd6 20. Nd3 {½-½ (20) Iturrizaga Bonelli,E (2636)-Santos Latasa,J (2572) Tegernsee 2018}) 11... exd5 {[%emt 0:00:04]} 12. e4 {[%emt 0:00:09]} dxe4 {[%emt 0:00:21]} 13. Ndxe4 {[%emt 0:00:02]} Nf6 {[%emt 0:00:02] Inhibits d5.} 14. Qd2 {[%emt 0:01:17]} Be6 {[%emt 0:00:34]} 15. Rfd1 {[%emt 0:00:50]} Qb6 {[%emt 0:00:53]} 16. Nxf6+ {[%emt 0:01:23]} Bxf6 {[%emt 0:00:02]} 17. Ne4 {[%emt 0:00:02]} Be7 {[%emt 0:00:06]} 18. Qc3 {[%emt 0:01:20]} Rad8 {[%emt 0:02:12]} 19. Nc5 {[%emt 0:01:40][%cal Be4c5,Bc5d3,Bd3b4][%mdl 32]} Bd5 {[%emt 0:00:04]} (19... Bg4 $5 {[%cal Rg4d1]} 20. Rd2 Bg5 $15) 20. Bh3 {[%emt 0:01:33]} Qc7 {[%emt 0:00:46] Against Nd7} 21. Nd3 {[%emt 0:00:38]} Bd6 {[%emt 0:00:57] This bishop pair is nice.} 22. Nb4 {[%emt 0:00:47]} Be4 {[%emt 0:00:03]} 23. Bg2 {[%emt 0:01:21]} Rfe8 {[%emt 0:00:27]} 24. Bxe4 {[%emt 0:00:54]} Rxe4 {[%emt 0:00:02]} 25. Re1 {[%emt 0:00:13]} Rxe1+ {[%emt 0:00:56]} 26. Rxe1 {[%emt 0:00:01]} Qa5 {[%emt 0:00:46]} 27. Nc2 {[%emt 0:00:30]} Qd5 {[%emt 0:00:31]} 28. a3 {[%emt 0:00:08]} (28. Ne3 $5 {[%cal Re3d5]} Qxa2 29. Nf5 $11) 28... Bf8 {[%emt 0:00:11]} 29. Re5 {[%emt 0:00:21]} Qd7 {[%emt 0:00:50]} 30. Qe3 {[%emt 0:00:16]} g6 {[%emt 0:00:02]} 31. Qe4 {[%emt 0:00:39]} Bd6 {[%emt 0:00:55]} 32. Ra5 {[%emt 0:00:32]} a6 {[%emt 0:00:35]} 33. Ra4 {[%emt 0:00:47]} Re8 {[%emt 0:00:37]} 34. Qd3 {[%emt 0:00:02] [#]} (34. Qf3 $17 {only move.}) 34... c5 {[%emt 0:00:27]} ({Black should play} 34... b5 $1 $19 {[%cal Rb5a4]} 35. Rxa6 Qb7) 35. Rc4 {[%emt 0:00:14]} b5 {[%emt 0:00:07]} 36. Rc3 {[%emt 0:00:01]} c4 $36 {[%emt 0:00:01][%mdl 2048] White is under pressure.} 37. Qf3 {[%emt 0:00:04]} Bf8 {[%emt 0:00:47][%cal Bd6f8,Bf8h6,Bh6g7,Bg7d4,Bd4f2][%mdl 32] Black is more active.} 38. Re3 {[%emt 0:00:07]} Rd8 {[%emt 0:00:01]} 39. b3 {[%emt 0:00:13]} Bh6 {[%emt 0:00:58]} (39... Rc8 $5 {[%cal Rc4b3]} 40. Rc3 a5 $15) 40. Re5 {[%emt 0:00:04]} (40. Re1 $15) 40... Bg7 $17 {[%emt 0:00:11]} 41. Re1 {[%emt 0:00:06]} (41. Re2 $15) 41... Bxd4 {[%emt 0:00:17]} 42. Rd1 $2 {[%emt 0:00:02][%mdl 8192] [#]} (42. bxc4 $17 bxc4 43. Re4) 42... Bxf2+ $1 $19 {[%emt 0:00:02][%mdl 512] Black is clearly winning.} 43. Kxf2 {[%emt 0:00:04]} Qxd1 {[%emt 0:00:02]} 44. Qxd1 {[%emt 0:00:04]} Rxd1 {[%emt 0:00:02] Weighted Error Value: White=0.35/Black=0.12 (very precise)} 0-1

[Event "Rosh Hashanah Rapid 2022"]
[Site "Ramat Gan"]
[Date "2022.09.25"]
[Round "1.9"]
[White "Mindlin, Alon"]
[Black "Sorin, Itay"]
[Result "1-0"]
[ECO "A80"]
[WhiteElo "2426"]
[BlackElo "1934"]
[Annotator "TA"]
[PlyCount "74"]
[EventDate "2022.09.25"]
[EventType "rapid"]
[EventCountry "ISR"]
[SourceTitle "playchess.com"]
[Source "ChessBase"]
[SourceQuality "1"]
[TimeControl "900+5"]

{[%evp 9,74,114,118,96,96,71,89,66,64,66,75,70,77,50,57,52,59,27,110,106,102,98,149,131,180,174,377,352,390,166,157,179,217,229,231,231,235,238,427,372,398,358,379,372,409,408,411,405,713,735,29982,29983,29983,29984,5226,2118,29981,29982,29993,29990,29990,29974,5022,2342,2342,1266,29967]} 1. d4 {[%emt 0:00:02]} f5 {[%emt 0:00:03]} 2. Bg5 {[%emt 0:00:04]} d5 {[%emt 0:00:03]} 3. e3 {[%emt 0:00:15]} g6 {[%emt 0:00:01]} 4. c4 {[%emt 0:00:08]} c6 {[%emt 0:00:22]} 5. Nc3 {[%emt 0:00:10]} Bg7 {[%emt 0:00:04]} 6. Qb3 {[%emt 0:00:26][%cal Rc4d5] A80: Dutch Defence: Unusual White second moves.} h6 {[%emt 0:00:28] [#]} 7. Bf4 $146 {[%emt 0:00:37][%cal Rc4d5]} ({Predecessor:} 7. Bh4 g5 8. Bg3 Nf6 9. Nf3 Qb6 10. Qxb6 axb6 11. cxd5 cxd5 12. Bc7 Be6 13. Bxb6 {½-½ (54) Vager,I (2209)-Jaghubov,E (2315) St Petersburg 1999}) 7... Nf6 {[%emt 0:00:04]} 8. cxd5 {[%emt 0:00:09] White is better.} cxd5 {[%emt 0:00:41]} 9. Nf3 {[%emt 0:00:24] Strongly threatening Bb5+. White is much more active.} Nc6 {[%emt 0:00:21]} 10. Bb5 {[%emt 0:00:06] [#] Ne5 is the strong threat.} O-O {[%emt 0:00:58]} 11. Ne5 {[%emt 0:01:39]} Nxe5 {[%emt 0:02:36]} 12. Bxe5 {[%emt 0:00:49]} Be6 {[%emt 0:00:55]} 13. O-O {[%emt 0:00:07]} a6 {[%emt 0:00:05]} (13... Ne4 $11) 14. Bd3 $36 {[%emt 0:00:02][%mdl 2048] White is in control. Black is now going downhill.} b5 {[%emt 0:01:47]} 15. Rfc1 {[%emt 0:00:56]} g5 {[%emt 0:00:19]} (15... Ng4 $142) 16. a4 $16 {[%emt 0:00:05]} bxa4 {[%emt 0:00:23]} (16... Ng4 $16 {was necessary.}) 17. Nxa4 $18 {[%emt 0:00:06] Threatens to win with Nb6.} ({Don't do} 17. Rxa4 Ne4 $16) 17... f4 $2 {[%emt 0:00:12]} (17... Nd7 {keeps fighting.}) 18. exf4 {[%emt 0:00:19]} gxf4 {[%emt 0:00:03]} 19. Qb6 {[%emt 0:00:27]} (19. Nb6 $142 Rb8 20. Rxa6) 19... Qxb6 {[%emt 0:02:09]} 20. Nxb6 {[%emt 0:00:01]} Rad8 {[%emt 0:00:01]} 21. Rxa6 {[%emt 0:00:34]} Ne4 {[%emt 0:00:39]} 22. Ra7 {[%emt 0:02:30] And now Rc6 would win.} Rf7 {[%emt 0:00:30]} 23. f3 {[%emt 0:00:29]} Nd2 {[%emt 0:00:32]} (23... Nd6 24. Bg6 Rf6) 24. Bg6 {[%emt 0:00:06]} Bxe5 {[%emt 0:00:04]} 25. Bxf7+ {[%emt 0:00:02]} ({Stronger than} 25. dxe5 Rg7 26. Bh5 Nc4 $14) 25... Kxf7 {[%emt 0:00:18]} 26. dxe5 {[%emt 0:00:01]} Rb8 {[%emt 0:00:22]} 27. Rc6 {[%emt 0:00:03]} d4 {[%emt 0:00:17]} 28. Na4 {[%emt 0:00:42] [#] Hoping for Nc5.} Nc4 {[%emt 0:00:39]} (28... Nb3 $142 29. Rcc7 Re8) 29. Nc5 {[%emt 0:00:09]} Rxb2 {[%emt 0:00:40]} 30. Rxe6 {[%emt 0:01:01]} Ne3 {[%emt 0:00:54]} 31. Rexe7+ {[%emt 0:01:06]} Kg6 {[%emt 0:00:05]} 32. Ra1 {[%emt 0:00:22] Black must now prevent Nd3.} Rc2 {[%emt 0:00:47]} 33. Nd3 {[%emt 0:00:11]} Nxg2 {[%emt 0:00:08]} 34. Kh1 {[%emt 0:01:00]} Nh4 {[%emt 0:00:09]} 35. Rg1+ {[%emt 0:00:21]} Kf5 {[%emt 0:00:02]} 36. Rf7+ {[%emt 0:00:02]} Ke6 {[%emt 0:00:01]} 37. Rxf4 {[%emt 0:00:01]} Kd5 {[%emt 0:00:28] Weighted Error Value: White=0.19 (very precise) /Black=0.71} 1-0

[Event "Rosh Hashanah Rapid 2022"]
[Site "Ramat Gan"]
[Date "2022.09.25"]
[Round "1.10"]
[White "Kinberg, Ofer"]
[Black "Ben Ari, Yannay"]
[Result "0-1"]
[ECO "A63"]
[WhiteElo "1934"]
[BlackElo "2387"]
[Annotator "TA"]
[PlyCount "79"]
[EventDate "2022.09.25"]
[EventType "rapid"]
[EventCountry "ISR"]
[SourceTitle "playchess.com"]
[Source "ChessBase"]
[SourceQuality "1"]
[TimeControl "900+5"]

{[%evp 22,79,58,0,43,0,26,-7,16,8,0,0,18,0,0,0,0,0,-10,-21,0,0,19,0,17,4,27,-15,60,-51,-65,-46,-62,-106,-72,-87,-33,-170,-165,-280,-240,-269,-250,-207,-162,-184,-172,-230,-195,-196,-195,-950,-929,-1197,-1197,-1126,-1087,-29983,-29984,-29997]} 1. d4 {[%emt 0:00:02]} Nf6 {[%emt 0:00:04]} 2. c4 {[%emt 0:00:02]} e6 {[%emt 0:00:02]} 3. g3 {[%emt 0:00:03]} c5 {[%emt 0:00:12]} 4. d5 {[%emt 0:00:03]} exd5 {[%emt 0:00:04]} 5. cxd5 {[%emt 0:00:01]} d6 {[%emt 0:00:07]} 6. Nc3 {[%emt 0:00:06]} g6 {[%emt 0:00:01]} 7. Bg2 {[%emt 0:00:04]} Bg7 {[%emt 0:00:02]} 8. Nf3 {[%emt 0:00:06]} O-O {[%emt 0:00:04]} 9. O-O {[%emt 0:00:05]} a6 {[%emt 0:00:06]} 10. a4 {[%emt 0:00:03]} Nbd7 {[%emt 0:01:06]} 11. Bf4 {[%emt 0:00:10]} Qe7 {[%emt 0:00:37]} 12. h3 {[%emt 0:02:51] 12.Re1 is more fashionable.} (12. a5 $14) 12... Rb8 {[%emt 0:01:37] A63: Modern Benoni: Fianchetto Variation: 9...Nbd7.} (12... Nh5 $5 {[%cal Rh5f4]}) 13. Qd3 {[%emt 0:02:09]} Ne8 {[%emt 0:04:48]} 14. Nd2 {[%emt 0:04:37]} Ne5 {[%emt 0:00:22] The position is equal.} (14... b5 {is more complex.} 15. axb5 axb5 16. Ra7 f5) 15. Bxe5 {[%emt 0:00:11] [#]} Bxe5 $146 {[%emt 0:00:28]} ({Predecessor:} 15... dxe5 16. Nc4 b5 17. axb5 axb5 18. Na5 c4 19. Qe3 Qc7 20. Nc6 Rb7 21. d6 Nxd6 22. Nd5 Qd7 23. Nde7+ Kh8 24. Rfd1 Qe6 25. Nxc8 Rxc8 26. Na7 Rcb8 {1-0 (26) Turan,A (1956)-Hurdzan,T (2223) Mamaia 2017}) 16. Nc4 {[%emt 0:01:08]} Bg7 {[%emt 0:00:59]} 17. Rfe1 {[%emt 0:02:32]} Bd7 {[%emt 0:01:02]} 18. Nb6 {[%emt 0:00:19]} Qd8 {[%emt 0:01:37]} 19. a5 {[%emt 0:00:43]} Nc7 {[%emt 0:00:03]} 20. Rec1 {[%emt 0:00:56]} Re8 {[%emt 0:00:38]} 21. Qd2 {[%emt 0:00:02]} f5 {[%emt 0:00:26]} 22. Kh2 {[%emt 0:00:04]} Nb5 {[%emt 0:00:39]} 23. e3 {[%emt 0:00:21]} Re7 {[%emt 0:00:24]} 24. Nc4 {[%emt 0:00:12]} Qc7 {[%emt 0:00:50]} (24... Nxc3 $11 25. bxc3 Bb5) 25. Qd3 {[%emt 0:00:08]} (25. Ne2 $1 $14) 25... Nxc3 $15 {[%emt 0:00:06]} 26. bxc3 {[%emt 0:00:03]} Bb5 {[%emt 0:00:02]} 27. Qe2 {[%emt 0:00:11]} Rf8 {[%emt 0:00:13][%cal Of5f4] aiming for ...f4!} 28. Qa2 {[%emt 0:00:01]} h5 {[%emt 0:00:07] Black is more active.} (28... g5 $17 29. Bf3 Qd8) 29. Nb6 {[%emt 0:00:02] White does not recover from this.} ({Better is} 29. h4 $15) 29... h4 $19 {[%emt 0:00:06] Strongly threatening ...hxg3+.} 30. c4 {[%emt 0:00:01]} (30. Qd2 $142) 30... hxg3+ {[%emt 0:00:04]} 31. fxg3 {[%emt 0:00:09]} Bxa1 {[%emt 0:00:07]} ({Inferior is} 31... Rxe3 32. Qd2 f4 33. gxf4 $17) 32. cxb5 {[%emt 0:00:10]} Bg7 {[%emt 0:00:08]} ({And not} 32... Rxe3 33. Nc4 Bd4 34. Nxe3 Bxe3 35. Re1 $17) 33. bxa6 {[%emt 0:00:03]} bxa6 {[%emt 0:00:02]} 34. Qe2 {[%emt 0:00:03]} (34. Nc4 $142) 34... f4 {[%emt 0:00:14]} 35. gxf4 {[%emt 0:00:08]} Rxf4 {[%emt 0:00:02]} 36. Qxa6 $2 {[%emt 0:00:02]} (36. Qd3 Rf5 37. e4 Be5+ 38. Kh1) 36... Rxe3 {[%emt 0:00:10] [#] ( -> ...Qe7)} 37. Qc8+ {[%emt 0:00:11]} Qxc8 {[%emt 0:00:01]} 38. Nxc8 {[%emt 0:00:00]} Rf2 {[%emt 0:00:04] ...Ra2 is the strong threat.} 39. Nxd6 {[%emt 0:00:07]} Ree2 {[%emt 0:00:08]} 40. Ra1 {[%emt 0:00:16] Weighted Error Value: White=0.93/Black=0.17 (very precise)} 0-1